bitfinex-derivatives/quotes_BNBF0:USTF0_20260110
["timestamp","ask_amount","ask_price","bid_price","bid_amount"]
[1768063552375,0.19129919,910.02,908.52,1.787]
[1768063552672,0.19129919,910.02,908.53,0.68994863]
[1768063552869,0.19129919,910.02,908.54,0.68994863]
[1768063553072,0.19129919,910.02,908.55,0.68994863]
[1768063553372,0.19129919,910.02,908.56,0.68994863]
[1768063553574,0.19129919,910.02,908.57,0.68994863]
[1768063553876,0.19129919,910.02,908.58,0.68994863]
[1768063554176,0.19129919,910.02,908.59,0.68994863]
[1768063554473,0.19129919,910.02,908.6,0.68994863]
[1768063554672,0.19129919,910.02,908.61,0.68994863]
[1768063554877,0.19129919,910.02,908.62,0.68994863]
[1768063555080,0.19129919,910.02,908.52,1.787]
[1768063555279,0.19129919,910.02,908.53,0.69041571]
[1768063555477,0.19129919,910.02,908.54,0.69041571]
[1768063555675,0.19129919,910.02,908.55,0.69041571]
[1768063555876,0.19129919,910.02,908.56,0.69041571]
[1768063556077,0.19129919,910.02,908.57,0.69041571]
[1768063556376,0.19129919,910.02,908.58,0.69041571]
[1768063556575,0.19129919,910.02,908.59,0.69041571]
[1768063556775,0.19129919,910.02,908.6,0.69041571]
[1768063556975,0.19129919,910.02,908.61,0.69041571]
[1768063557174,0.19129919,910.02,908.62,0.69041571]
[1768063557377,0.19129919,910.02,908.63,0.69041571]
[1768063557575,0.19129919,910.02,908.64,0.69041571]
[1768063557782,0.19129919,910.02,908.52,1.787]
[1768063557783,0.19129919,910.02,908.65,0.69041571]
[1768063557977,0.19129919,910.02,908.66,0.69041571]
[1768063558178,0.19129919,910.02,908.67,0.69116705]
[1768063558378,0.19129919,910.02,908.52,1.787]
[1768063558576,0.19129919,910.02,908.53,0.69116705]
[1768063558778,0.19129919,910.02,908.54,0.69116705]
[1768063558980,0.19129919,910.02,908.55,0.69116705]
[1768063559179,0.19129919,910.02,908.56,0.69116705]
[1768063559384,0.19129919,910.02,908.57,0.69116705]
[1768063559583,0.19129919,910.02,908.58,0.69116705]
[1768063559783,0.19129919,910.02,908.59,0.69116705]
[1768063559984,0.19129919,910.02,908.6,0.69116705]
[1768063560185,0.19129919,910.02,908.61,0.69116705]
[1768063560384,0.19129919,910.02,908.62,0.69116705]
[1768063560585,0.19129919,910.02,908.63,0.69116705]
[1768063560784,0.19129919,910.02,908.64,0.69116705]
[1768063560984,0.19129919,910.02,908.65,0.69116705]
[1768063561185,0.19129919,910.02,908.66,0.69116705]
[1768063561387,0.19129919,910.02,908.67,0.69116705]
[1768063561688,0.19129919,910.02,908.52,1.787]
[1768063561884,0.19129919,910.02,908.53,0.69236322]
[1768063562184,0.19129919,910.02,908.54,0.69236322]
[1768063562389,0.19129919,910.02,908.55,0.69236322]
[1768063562588,0.19129919,910.02,908.56,0.69236322]
[1768063562788,0.19129919,910.02,908.57,0.69236322]
[1768063563085,0.19129919,910.02,908.58,0.69236322]
[1768063563283,0.19129919,910.02,908.52,1.787]
[1768063563488,0.19129919,910.02,908.53,0.69247069]
[1768063563682,0.19129919,910.02,908.54,0.69247069]
[1768063563886,0.19129919,910.02,908.55,0.69247069]
[1768063564085,0.19129919,910.02,908.56,0.69247069]
[1768063564388,0.19129919,910.02,908.57,0.69247069]
[1768063564585,0.19129919,910.02,908.58,0.69247069]
[1768063564789,0.19129919,910.02,908.52,1.787]
[1768063565088,0.19129919,910.02,908.53,0.69245972]
[1768063565284,0.19129919,910.02,908.54,0.69245972]
[1768063565488,0.19129919,910.02,908.55,0.69245972]
[1768063565681,0.19129919,910.02,908.56,0.69245972]
[1768063565886,0.19129919,910.02,908.57,0.69245972]
[1768063566091,0.19129919,910.02,908.58,0.69245972]
[1768063566390,0.19129919,910.02,908.52,1.787]
[1768063566684,0.19129919,910.02,908.53,0.69244206]
[1768063566888,0.19129919,910.02,908.54,0.69244206]
[1768063567089,0.19129919,910.02,908.55,0.69244206]
[1768063567288,0.19129919,910.02,908.56,0.69244206]
[1768063567484,0.19129919,910.02,908.57,0.69244206]
[1768063567783,0.19129919,910.02,908.52,1.787]
[1768063567984,0.19129919,910.02,908.53,0.69243192]
[1768063568190,0.19129919,910.02,908.54,0.69243192]
[1768063568490,0.19129919,910.02,908.55,0.69243192]
[1768063568689,0.19129919,910.02,908.56,0.69243192]
[1768063568886,0.19129919,910.02,908.57,0.69243192]
[1768063569188,0.19129919,910.02,908.52,1.787]
[1768063569386,0.19129919,910.02,908.53,0.69240165]
[1768063569586,0.19129919,910.02,908.52,1.787]
[1768063569587,0.19129919,910.02,908.54,0.69240165]
[1768063569787,0.19129919,910.02,908.52,1.787]
[1768063570090,0.19129919,910.02,908.53,0.692423]
[1768063570286,0.19129919,910.02,908.52,1.787]
[1768063570488,0.19129919,910.02,908.53,0.69236776]
[1768063570685,0.19129919,910.02,908.52,1.787]
[1768063570986,0.19129919,910.02,908.53,0.69236776]
[1768063571290,0.19129919,910.02,908.52,1.787]
[1768063571591,0.19129919,910.02,908.53,0.6923209]
[1768063571789,0.19129919,910.02,908.54,0.6923209]
[1768063571993,0.19129919,910.02,908.55,0.6923209]
[1768063572293,0.19129919,910.02,908.56,0.6923209]
[1768063572494,0.19129919,910.02,908.57,0.6923209]
[1768063572692,0.19129919,910.02,908.58,0.6923209]
[1768063572889,0.19129919,910.02,908.59,0.6923209]
[1768063573189,0.19129919,910.02,908.6,0.6923209]
[1768063573390,0.19129919,910.02,908.61,0.6923209]
[1768063573595,0.19129919,910.02,908.62,0.6923209]
[1768063573896,0.19129919,910.02,908.52,1.787]
[1768063574097,0.19129919,910.02,908.53,0.69222074]
[1768063574295,0.19129919,910.02,908.54,0.69222074]
[1768063574493,0.19129919,910.02,908.55,0.69222074]
[1768063574792,0.19129919,910.02,908.56,0.69222074]
[1768063574997,0.19129919,910.02,908.57,0.69222074]
[1768063575196,0.19129919,910.02,908.58,0.69222074]
[1768063575395,0.19129919,910.02,908.52,1.787]
[1768063575396,0.19129919,910.02,908.59,0.69222074]
[1768063575597,0.19129919,910.02,908.6,0.69222074]
[1768063575799,0.19129919,910.02,908.61,0.69222074]
[1768063575995,0.19129919,910.02,908.62,0.69222074]
[1768063576195,0.19129919,910.02,908.52,1.787]
[1768063576494,0.19129919,910.02,908.53,0.69211171]
[1768063576699,0.19129919,910.02,908.54,0.69211171]
[1768063576899,0.19129919,910.02,908.55,0.69211171]
[1768063577100,0.19129919,910.02,908.56,0.69211171]
[1768063577398,0.19129919,910.02,908.57,0.69211171]
[1768063577595,0.19129919,910.02,908.58,0.69211171]
[1768063577896,0.19129919,910.02,908.59,0.69211171]
[1768063578099,0.19129919,910.02,908.6,0.69211171]
[1768063578299,0.19129919,910.02,908.61,0.69211171]
[1768063578498,0.19129919,910.02,908.52,1.787]
[1768063578696,0.19129919,910.02,908.53,0.69206448]
[1768063578896,0.19129919,910.02,908.54,0.69206448]
[1768063579098,0.19129919,910.02,908.55,0.69206448]
[1768063579299,0.19129919,910.02,908.56,0.69206448]
[1768063579501,0.19129919,910.02,908.57,0.69206448]
[1768063579700,0.19129919,910.02,908.58,0.69206448]
[1768063579901,0.19129919,910.02,908.59,0.69206448]
[1768063580101,0.19129919,910.02,908.6,0.69206448]
[1768063580303,0.19129919,910.02,908.61,0.69206448]
[1768063580498,0.19129919,910.02,908.52,1.787]
[1768063580700,0.19129919,910.02,908.53,0.69203389]
[1768063580997,0.19129919,910.02,908.54,0.69203389]
[1768063581197,0.19129919,910.02,908.55,0.69203389]
[1768063581501,0.19129919,910.02,908.56,0.69203389]
[1768063581801,0.19129919,910.02,908.57,0.69203389]
[1768063582002,0.19129919,910.02,908.58,0.69203389]
[1768063582299,0.19129919,910.02,908.59,0.69203389]
[1768063582503,0.19129919,910.02,908.52,1.787]
[1768063582802,0.19129919,910.02,908.53,0.69201798]
[1768063582998,0.19129919,910.02,908.54,0.69201798]
[1768063583196,0.19129919,910.02,908.55,0.69201798]
[1768063583398,0.19129919,910.02,908.56,0.69201798]
[1768063583697,0.19129919,910.02,908.57,0.69201798]
[1768063583902,0.19129919,910.02,908.58,0.69201798]
[1768063584200,0.19129919,910.02,908.59,0.69201798]
[1768063584401,0.19129919,910.02,908.52,1.787]
[1768063584598,0.19129919,910.02,908.53,0.69201614]
[1768063584803,0.19129919,910.02,908.54,0.69201614]
[1768063585103,0.19129919,910.02,908.55,0.69201614]
[1768063585403,0.19129919,910.02,908.56,0.69201614]
[1768063585703,0.19129919,910.02,908.57,0.69201614]
[1768063585900,0.19129919,910.02,908.58,0.69201614]
[1768063586100,0.19129919,910.02,908.59,0.69201614]
[1768063586304,0.19129919,910.02,908.52,1.787]
[1768063586504,0.19129919,910.02,908.53,0.69202821]
[1768063586704,0.19129919,910.02,908.54,0.69202821]
[1768063586904,0.19129919,910.02,908.55,0.69202821]
[1768063587104,0.19129919,910.02,908.56,0.69202821]
[1768063587404,0.19129919,910.02,908.57,0.69202821]
[1768063587604,0.19129919,910.02,908.58,0.69202821]
[1768063587806,0.19129919,910.02,908.59,0.69202821]
[1768063588005,0.19129919,910.02,908.52,1.787]
[1768063588202,0.19129919,910.02,908.53,0.69203947]
[1768063588506,2.72679797,910.13,908.54,0.69203947]
[1768063588704,2.72679797,910.13,908.52,1.787]
[1768063588705,0.19139651,909.65,908.55,0.69203947]
[1768063588907,3.03181947,909.65,908.56,0.69203947]
[1768063589104,3.03181947,909.65,908.57,0.69203947]
[1768063589304,3.03181947,909.65,908.58,0.69203947]
[1768063589502,3.03181947,909.65,908.59,0.69203947]
[1768063589801,3.03181947,909.65,908.52,1.787]
[1768063590001,3.03181947,909.65,908.53,0.69207409]
[1768063590201,3.03181947,909.65,908.54,0.69207409]
[1768063590400,3.03181947,909.65,908.55,0.69207409]
[1768063590603,3.03181947,909.65,908.56,0.69207409]
[1768063590805,3.03181947,909.65,908.57,0.69207409]
[1768063591102,3.03181947,909.65,908.58,0.69207409]
[1768063591407,3.03181947,909.65,908.59,0.69207409]
[1768063591608,3.03181947,909.65,908.6,0.6914237]
[1768063591803,3.03181947,909.65,908.61,0.6914237]
[1768063592006,3.03181947,909.65,908.62,0.6914237]
[1768063592202,3.03181947,909.65,908.52,1.787]
[1768063592407,3.03181947,909.65,908.53,0.69145658]
[1768063592608,3.03181947,909.65,908.54,0.69145658]
[1768063592809,3.03181947,909.65,908.55,0.69145658]
[1768063593104,3.03181947,909.65,908.56,0.69145658]
[1768063593304,3.03181947,909.65,908.57,0.69145658]
[1768063593508,3.03181947,909.65,908.58,0.69145658]
[1768063593705,3.03181947,909.65,908.59,0.69145658]
[1768063593905,3.03181947,909.65,908.6,0.69145658]
[1768063594105,3.03181947,909.65,908.52,1.787]
[1768063594106,3.03181947,909.65,908.61,0.69145658]
[1768063594308,3.03181947,909.65,908.62,0.69145658]
[1768063594505,3.03181947,909.65,908.52,1.787]
[1768063594708,3.03181947,909.65,908.53,0.69154024]
[1768063594907,3.03181947,909.65,908.54,0.69154024]
[1768063595105,3.03181947,909.65,908.55,0.69154024]
[1768063595407,3.03181947,909.65,908.56,0.69154024]
[1768063595604,3.03181947,909.65,908.57,0.69154024]
[1768063595808,3.03181947,909.65,908.58,0.69154024]
[1768063596004,3.03181947,909.65,908.59,0.69154024]
[1768063596309,3.03181947,909.65,908.6,0.69154024]
[1768063596509,3.03181947,909.65,908.61,0.69154024]
[1768063596709,3.03181947,909.65,908.62,0.69154024]
[1768063596906,3.03181947,909.65,908.52,1.787]
[1768063597109,3.03181947,909.65,908.53,0.69157921]
[1768063597410,3.03181947,909.65,908.54,0.69157921]
[1768063597609,3.03181947,909.65,908.55,0.69157921]
[1768063597808,3.03181947,909.65,908.56,0.69157921]
[1768063598006,3.03181947,909.65,908.57,0.69157921]
[1768063598211,3.03181947,909.65,908.58,0.69157921]
[1768063598408,3.03181947,909.65,908.59,0.69157921]
[1768063598607,3.03181947,909.65,908.6,0.69157921]
[1768063598810,3.03181947,909.65,908.61,0.69157921]
[1768063599008,3.03181947,909.65,908.62,0.69157921]
[1768063599206,3.03181947,909.65,908.63,0.69157921]
[1768063599509,3.03181947,909.65,908.52,1.787]
[1768063599707,3.03181947,909.65,908.53,0.69161367]
[1768063600007,3.03181947,909.65,908.54,0.69161367]
[1768063600207,3.03181947,909.65,908.55,0.69161367]
[1768063600405,3.03181947,909.65,908.56,0.69161367]
[1768063600606,3.03181947,909.65,908.57,0.69161367]
[1768063600805,3.03181947,909.65,908.58,0.69161367]
[1768063601106,3.03181947,909.65,908.59,0.69161367]
[1768063601310,3.03181947,909.65,908.6,0.69161367]
[1768063601507,3.03181947,909.65,908.52,1.787]
[1768063601807,3.03181947,909.65,908.53,0.69164694]
[1768063602011,3.03181947,909.65,908.54,0.69164694]
[1768063602208,3.03181947,909.65,908.55,0.69164694]
[1768063602407,3.03181947,909.65,908.56,0.69164694]
[1768063602711,3.03181947,909.65,908.57,0.69164694]
[1768063602910,3.03181947,909.65,908.52,1.787]
[1768063603110,3.03181947,909.65,908.53,0.6916669]
[1768063603310,3.03181947,909.65,908.54,0.6916669]
[1768063603509,3.03181947,909.65,908.55,0.6916669]
[1768063603708,3.03181947,909.65,908.56,0.6916669]
[1768063603911,3.03181947,909.65,908.57,0.6916669]
[1768063604108,3.03181947,909.65,908.52,1.787]
[1768063604311,3.03181947,909.65,908.53,0.69171035]
[1768063604612,3.03181947,909.65,908.54,0.69171035]
[1768063604908,3.03181947,909.65,908.55,0.69171035]
[1768063605110,3.03181947,909.65,908.56,0.69171035]
[1768063605313,3.03181947,909.65,908.57,0.69171035]
[1768063605613,3.03181947,909.65,908.46,4.13366415]
[1768063605909,3.03181947,909.65,908.47,0.6917198]
[1768063606114,3.03181947,909.65,908.48,0.6917198]
[1768063606309,3.03181947,909.65,908.49,0.6917198]
[1768063606507,3.03181947,909.65,908.5,0.6917198]
[1768063606711,3.03181947,909.65,908.51,0.6917198]
[1768063606910,3.03181947,909.65,908.52,0.6917198]
[1768063607110,3.03181947,909.65,908.53,0.6917198]
[1768063607313,3.03181947,909.65,908.54,0.6917198]
[1768063607613,3.03181947,909.65,908.55,0.6917198]
[1768063607811,3.03181947,909.65,908.56,0.6917198]
[1768063608012,3.03181947,909.65,908.57,0.6917198]
[1768063608210,3.03181947,909.65,908.52,1.68]
[1768063608511,3.03181947,909.65,908.53,0.69181978]
[1768063608810,3.03181947,909.65,908.54,0.69181978]
[1768063609013,3.03181947,909.65,908.52,1.68]
[1768063609014,3.03181947,909.65,908.55,0.69181978]
[1768063609213,3.03181947,909.65,908.56,0.69181978]
[1768063609511,3.03181947,909.65,908.57,0.69181978]
[1768063609709,3.03181947,909.65,908.58,0.69181978]
[1768063609911,3.03181947,909.65,908.52,1.68]
[1768063610111,3.03181947,909.65,908.53,0.69186356]
[1768063610311,3.03181947,909.65,908.54,0.69186356]
[1768063610514,3.03181947,909.65,908.55,0.69186356]
[1768063610809,3.03181947,909.65,908.56,0.69186356]
[1768063611012,3.03181947,909.65,908.57,0.69186356]
[1768063611215,3.03181947,909.65,908.58,0.69186356]
[1768063611415,3.03181947,909.65,908.52,1.68]
[1768063611714,3.03181947,909.65,908.53,0.69198008]
[1768063611915,3.03181947,909.65,908.54,0.69198008]
[1768063612214,3.03181947,909.65,908.55,0.69198008]
[1768063612414,3.03181947,909.65,908.56,0.69198008]
[1768063612615,3.03181947,909.65,908.57,0.69198008]
[1768063612814,3.03181947,909.65,908.58,0.69198008]
[1768063613012,3.03181947,909.65,908.59,0.69198008]
[1768063613215,3.03181947,909.65,908.6,0.69198008]
[1768063613416,3.03181947,909.65,908.61,0.69198008]
[1768063613617,3.03181947,909.65,908.62,0.69198008]
[1768063613816,3.03181947,909.65,908.63,0.69198008]
[1768063614014,3.03181947,909.65,908.64,0.69198008]
[1768063614214,3.03181947,909.65,908.65,0.69198008]
[1768063614417,3.03181947,909.65,908.66,0.69198008]
[1768063614617,3.03181947,909.65,908.67,0.69198008]
[1768063614816,3.03181947,909.65,908.68,0.69198008]
[1768063615016,3.03181947,909.65,908.69,0.69198008]
[1768063615216,3.03181947,909.65,908.7,0.69198008]
[1768063615418,3.03181947,909.65,908.71,0.69198008]
[1768063615616,3.03181947,909.65,908.52,1.68]
[1768063615916,3.03181947,909.65,908.53,0.69222984]
[1768063616118,3.03181947,909.65,908.54,0.69222984]
[1768063616316,3.03181947,909.65,908.55,0.69222984]
[1768063616519,3.03181947,909.65,908.56,0.69222984]
[1768063616718,3.03181947,909.65,908.57,0.69222984]
[1768063616919,3.03181947,909.65,908.58,0.69222984]
[1768063617117,3.03181947,909.65,908.59,0.69222984]
[1768063617318,3.03181947,909.65,908.6,0.69222984]
[1768063617515,3.03181947,909.65,908.61,0.69222984]
[1768063617720,3.03181947,909.65,908.62,0.69222984]
[1768063617920,3.03181947,909.65,908.63,0.69222984]
[1768063618116,3.03181947,909.65,908.64,0.69222984]
[1768063618417,3.03181947,909.65,908.65,0.69222984]
[1768063618720,3.03181947,909.65,908.66,0.69222984]
[1768063619020,3.03181947,909.65,908.67,0.69222984]
[1768063619316,3.03181947,909.65,908.68,0.69222984]
[1768063619516,3.03181947,909.65,908.69,0.69222984]
[1768063619819,3.03181947,909.65,908.7,0.69222984]
[1768063620016,3.03181947,909.65,908.71,0.69222984]
[1768063620220,3.03181947,909.65,908.52,1.68]
[1768063620517,3.03181947,909.65,908.53,0.69227567]
[1768063620718,3.03181947,909.65,908.54,0.69227567]
[1768063620917,3.03181947,909.65,908.55,0.69227567]
[1768063621117,3.03181947,909.65,908.56,0.69227567]
[1768063621316,3.03181947,909.65,908.57,0.69227567]
[1768063621519,3.03181947,909.65,908.58,0.69227567]
[1768063621720,3.03181947,909.65,908.59,0.69227567]
[1768063622016,3.03181947,909.65,908.6,0.69227567]
[1768063622220,3.03181947,909.65,908.61,0.69227567]
[1768063622417,3.03181947,909.65,908.62,0.69227567]
[1768063622621,3.03181947,909.65,908.63,0.69227567]
[1768063622817,3.03181947,909.65,908.64,0.69227567]
[1768063623120,3.03181947,909.65,908.65,0.69227567]
[1768063623318,3.03181947,909.65,908.66,0.69227567]
[1768063623618,3.03181947,909.65,908.67,0.69227567]
[1768063623821,3.03181947,909.65,908.68,0.69227567]
[1768063624021,3.03181947,909.65,908.52,1.68]
[1768063624022,3.03181947,909.65,908.69,0.69227567]
[1768063624219,3.03181947,909.65,908.7,0.69227567]
[1768063624522,3.03181947,909.65,908.52,1.68]
[1768063624722,3.03181947,909.65,908.53,0.69227555]
[1768063625018,3.03181947,909.65,908.54,0.69227555]
[1768063625220,3.03181947,909.65,908.55,0.69227555]
[1768063625418,3.03181947,909.65,908.56,0.69227555]
[1768063625616,3.03181947,909.65,908.57,0.69227555]
[1768063625821,3.03181947,909.65,908.58,0.69227555]
[1768063626019,3.03181947,909.65,908.59,0.69227555]
[1768063626219,3.03181947,909.65,908.6,0.69227555]
[1768063626423,3.03181947,909.65,908.61,0.69227555]
[1768063626620,3.03181947,909.65,908.62,0.69227555]
[1768063626824,3.03181947,909.65,908.63,0.69227555]
[1768063627025,3.03181947,909.65,908.64,0.69227555]
[1768063627227,3.03181947,909.65,908.65,0.69227555]
[1768063627425,3.03181947,909.65,908.66,0.69227555]
[1768063627725,3.03181947,909.65,908.67,0.69227555]
[1768063628025,3.03181947,909.65,908.52,1.68]
[1768063628026,3.03181947,909.65,908.68,0.69227555]
[1768063628222,3.03181947,909.65,908.69,0.69227555]
[1768063628420,3.03181947,909.65,908.52,1.68]
[1768063628421,3.03181947,909.65,908.7,0.69227555]
[1768063628624,3.03181947,909.65,908.52,1.68]
[1768063628828,3.03181947,909.65,908.53,0.69227532]
[1768063629024,3.03181947,909.65,908.54,0.69227532]
[1768063629228,3.03181947,909.65,908.55,0.69227532]
[1768063629427,3.03181947,909.65,908.56,0.69227532]
[1768063629628,3.03181947,909.65,908.57,0.69227532]
[1768063629925,3.03181947,909.65,908.58,0.69227532]
[1768063630124,3.03181947,909.65,908.59,0.69227532]
[1768063630425,3.03181947,909.65,908.6,0.69227532]
[1768063630627,3.03181947,909.65,908.61,0.69227532]
[1768063630828,3.03181947,909.65,908.62,0.69227532]
[1768063631024,3.03181947,909.65,908.63,0.69227532]
[1768063631225,3.03181947,909.65,908.64,0.69227532]
[1768063631424,3.03181947,909.65,908.65,0.69227532]
[1768063631627,3.03181947,909.65,908.66,0.69227532]
[1768063631925,3.03181947,909.65,908.67,0.69227532]
[1768063632129,3.03181947,909.65,908.68,0.69227532]
[1768063632325,3.03181947,909.65,908.69,0.69227532]
[1768063632625,3.03181947,909.65,908.7,0.69227532]
[1768063632830,3.03181947,909.65,908.71,0.69227532]
[1768063633024,3.03181947,909.65,908.52,1.68]
[1768063633227,3.03181947,909.65,908.53,0.69227522]
[1768063633426,3.03181947,909.65,908.54,0.69227522]
[1768063633627,3.03181947,909.65,908.55,0.69227522]
[1768063633830,3.03181947,909.65,908.56,0.69227522]
[1768063634031,3.03181947,909.65,908.57,0.69227522]
[1768063634331,3.03181947,909.65,908.58,0.69227522]
[1768063634531,3.03181947,909.65,908.59,0.69227522]
[1768063634834,3.03181947,909.65,908.6,0.69227522]
[1768063635032,3.03181947,909.65,908.61,0.69227522]
[1768063635228,3.03181947,909.65,908.62,0.69227522]
[1768063635432,3.03181947,909.65,908.63,0.69227522]
[1768063635633,3.03181947,909.65,908.64,0.69227522]
[1768063635832,3.03181947,909.65,908.65,0.69227522]
[1768063636033,3.03181947,909.65,908.66,0.69227522]
[1768063636233,3.03181947,909.65,908.67,0.69227522]
[1768063636532,3.03181947,909.65,908.68,0.69227522]
[1768063636734,3.03181947,909.65,908.69,0.69227522]
[1768063636943,3.03181947,909.65,908.7,0.69227522]
[1768063637134,3.03181947,909.65,908.71,0.69227522]
[1768063637336,3.03181947,909.65,908.52,1.68]
[1768063637536,3.03181947,909.65,908.53,0.69227544]
[1768063637736,3.03181947,909.65,908.54,0.69227544]
[1768063637936,3.03181947,909.65,908.55,0.69227544]
[1768063638235,3.03181947,909.65,908.56,0.69227544]
[1768063638432,3.03181947,909.65,908.57,0.69227544]
[1768063638734,3.03181947,909.65,908.58,0.69227544]
[1768063638933,3.03181947,909.65,908.59,0.69227544]
[1768063639132,3.03181947,909.65,908.6,0.69227544]
[1768063639437,3.03181947,909.65,908.61,0.69227544]
[1768063639636,3.03181947,909.65,908.62,0.69227544]
[1768063639833,3.03181947,909.65,908.63,0.69227544]
[1768063640032,3.03181947,909.65,908.64,0.69227544]
[1768063640233,3.03181947,909.65,908.65,0.69227544]
[1768063640436,3.03181947,909.65,908.66,0.69227544]
[1768063640736,3.03181947,909.65,908.67,0.69227544]
[1768063640933,3.03181947,909.65,908.68,0.69227544]
[1768063641234,3.03181947,909.65,908.69,0.69227544]
[1768063641432,3.03181947,909.65,908.7,0.69227544]
[1768063641633,3.03181947,909.65,908.71,0.69227544]
[1768063641936,3.03181947,909.65,908.52,1.68]
[1768063642132,3.03181947,909.65,908.53,0.69227538]
[1768063642336,3.03181947,909.65,908.54,0.69227538]
[1768063642534,3.03181947,909.65,908.52,1.68]
[1768063642535,3.03181947,909.65,908.55,0.69227538]
[1768063642737,3.03181947,909.65,908.52,1.68]
[1768063642738,3.03181947,909.65,908.56,0.69227538]
[1768063642939,3.03181947,909.65,908.57,0.69227538]
[1768063643234,3.03181947,909.65,908.58,0.69227538]
[1768063643437,3.03181947,909.65,908.59,0.69227538]
[1768063643638,3.03181947,909.65,908.6,0.69227538]
[1768063643838,3.03181947,909.65,908.61,0.69227538]
[1768063644035,3.03181947,909.65,908.62,0.69227538]
[1768063644334,3.03181947,909.65,908.63,0.69227538]
[1768063644533,3.03181947,909.65,908.64,0.69227538]
[1768063644738,3.03181947,909.65,908.65,0.69227538]
[1768063644934,3.03181947,909.65,908.66,0.69227538]
[1768063645138,3.03181947,909.65,908.67,0.69227538]
[1768063645335,3.03181947,909.65,908.68,0.69227538]
[1768063645540,3.03181947,909.65,908.69,0.69227538]
[1768063645739,3.03181947,909.65,908.7,0.69227538]
[1768063645939,3.03181947,909.65,908.71,0.69227538]
[1768063646142,3.03181947,909.65,908.52,1.68]
[1768063646336,3.03181947,909.65,908.53,0.69227526]
[1768063646537,3.03181947,909.65,908.54,0.69227526]
[1768063646841,3.03181947,909.65,908.55,0.69227526]
[1768063647040,3.03181947,909.65,908.56,0.69227526]
[1768063647238,3.03181947,909.65,908.57,0.69227526]
[1768063647439,3.03181947,909.65,908.58,0.69227526]
[1768063647741,3.03181947,909.65,908.59,0.69227526]
[1768063647941,3.03181947,909.65,908.6,0.69227526]
[1768063648239,3.03181947,909.65,908.61,0.69227526]
[1768063648437,3.03181947,909.65,908.62,0.69227526]
[1768063648637,3.03181947,909.65,908.63,0.69227526]
[1768063648835,3.03181947,909.65,908.64,0.69227526]
[1768063649038,3.03181947,909.65,908.65,0.69227526]
[1768063649338,3.03181947,909.65,908.66,0.69227526]
[1768063649542,3.03181947,909.65,908.67,0.69227526]
[1768063649737,3.03181947,909.65,908.68,0.69227526]
[1768063649938,3.03181947,909.65,908.69,0.69227526]
[1768063650144,3.03181947,909.65,908.7,0.69227526]
[1768063650343,3.03181947,909.65,908.71,0.69227526]
[1768063650544,3.03181947,909.65,908.52,1.68]
[1768063650742,3.03181947,909.65,908.53,0.69214452]
[1768063650942,3.03181947,909.65,908.54,0.69214452]
[1768063651144,3.03181947,909.65,908.55,0.69214452]
[1768063651344,3.03181947,909.65,908.56,0.69214452]
[1768063651544,3.03181947,909.65,908.57,0.69214452]
[1768063651744,3.03181947,909.65,908.58,0.69214452]
[1768063651947,3.03181947,909.65,908.59,0.69214452]
[1768063652149,3.03181947,909.65,908.6,0.69214452]
[1768063652349,3.03181947,909.65,908.61,0.69214452]
[1768063652551,3.03181947,909.65,908.62,0.69214452]
[1768063652847,3.03181947,909.65,908.52,1.68]
[1768063653051,3.03181947,909.65,908.53,0.69214451]
[1768063653250,3.03181947,909.65,908.54,0.69214451]
[1768063653450,3.03181947,909.65,908.55,0.69214451]
[1768063653652,3.03181947,909.65,908.56,0.69214451]
[1768063653947,3.03181947,909.65,908.57,0.69214451]
[1768063654250,3.03181947,909.65,908.58,0.69214451]
[1768063654450,3.03181947,909.65,908.59,0.69214451]
[1768063654750,3.03181947,909.65,908.6,0.69214451]
[1768063655047,3.03181947,909.65,908.61,0.69214451]
[1768063655250,3.03181947,909.65,908.62,0.69214451]
[1768063655447,3.03181947,909.65,908.52,1.68]
[1768063655652,3.03181947,909.65,908.53,0.69214478]
[1768063655847,3.03181947,909.65,908.54,0.69214478]
[1768063656051,3.03181947,909.65,908.55,0.69214478]
[1768063656252,3.03181947,909.65,908.56,0.69214478]
[1768063656452,3.03181947,909.65,908.57,0.69214478]
[1768063656749,3.03181947,909.65,908.58,0.69214478]
[1768063656950,3.03181947,909.65,908.59,0.69214478]
[1768063657149,3.03181947,909.65,908.6,0.69214478]
[1768063657352,3.03181947,909.65,908.61,0.69214478]
[1768063657648,3.03181947,909.65,908.62,0.69214478]
[1768063657949,3.03181947,909.65,908.52,1.68]
[1768063658149,3.03181947,909.65,908.53,0.69214491]
[1768063658349,3.03181947,909.65,908.54,0.69214491]
[1768063658553,3.03181947,909.65,908.55,0.69214491]
[1768063658754,3.03181947,909.65,908.56,0.69214491]
[1768063658954,3.03181947,909.65,908.57,0.69214491]
[1768063659150,3.03181947,909.65,908.58,0.69214491]
[1768063659451,3.03181947,909.65,908.59,0.69214491]
[1768063659651,3.03181947,909.65,908.6,0.69214491]
[1768063659851,3.03181947,909.65,908.61,0.69214491]
[1768063660050,3.03181947,909.65,908.62,0.69214491]
[1768063660253,3.03181947,909.65,908.52,1.68]
[1768063660451,3.03181947,909.65,908.53,0.69214542]